[Event "26th Womens ECCC 2022"]
[Site "Mayrhofen"]
[Date "2022.10.03"]
[Round "1.30"]
[White "Federovski, Adi"]
[Black "Gaponenko, Inna"]
[Result "0-1"]
[ECO "B24"]
[WhiteElo "1967"]
[BlackElo "2348"]
[Annotator "TA"]
[PlyCount "106"]
[EventDate "2022.10.03"]
[EventType "team-tourn"]
[EventCountry "AUT"]
[SourceTitle "playchess.com"]
[Source "ChessBase"]
[SourceQuality "1"]
[TimeControl "40/5400+30:1800+30"]

{[%evp 9,106,25,22,16,18,2,12,2,0,0,13,0,9,10,0,-4,1,-14,0,-16,-19,-14,-11,-29,-20,-53,-50,-39,-55,-77,-31,-66,-60,-70,-72,-83,-68,-85,-83,-110,-98,-118,-127,-164,-155,-164,-111,-154,-162,-168,-156,-166,-164,-200,-193,-193,-195,-200,-193,-206,-206,-206,-206,-228,-231,-223,-221,-343,-354,-399,-351,-392,-337,-370,-363,-434,-434,-432,-409,-411,-378,-425,-425,-530,-506,-693,-730,-1055,-1050,-1054,-1052,-1010,-956,-847,-591,-3191,-2760,-29987,-29988]} 1. e4 {[%emt 0:00:03]} c5 {[%emt 0:00:05]} 2. Nc3 {[%emt 0:00:08]} Nc6 {[%emt 0:00:42]} 3. Bb5 {[%emt 0:00:30]} Nd4 {[%emt 0:01:21]} 4. Nf3 {[%emt 0:01:56]} a6 {[%emt 0:02:52]} 5. Bd3 {[%emt 0:04:08]} Nc6 {[%emt 0:10:59]} 6. O-O {[%emt 0:03:59] B23: Closed Sicilian: Lines without g3.} d6 {[%emt 0:00:55]} 7. Nd5 {[%emt 0:06:30]} e6 {[%emt 0:09:34]} 8. Ne3 {[%emt 0:03:13] [#] The position is equal.} g6 $146 {[%emt 0:01:35]} ({Predecessor:} 8... Nf6 9. c3 d5 10. exd5 Nxd5 11. Be4 Be7 12. d4 Nf6 13. Bxc6+ bxc6 14. dxc5 Qxd1 15. Rxd1 Bxc5 {1-0 (30) Erdos,V (2604)-Babula,V (2574) Corte 2022}) 9. c3 {[%emt 0:05:17]} Bg7 {[%emt 0:00:19]} 10. Bc2 {[%emt 0:00:23]} Nf6 {[%emt 0:01:09]} 11. d4 {[%emt 0:04:35]} cxd4 {[%emt 0:01:02]} 12. Nxd4 {[%emt 0:00:31]} O-O {[%emt 0:11:04]} 13. Nxc6 {[%emt 0:03:00]} bxc6 {[%emt 0:00:07]} 14. e5 {[%emt 0:18:42]} dxe5 {[%emt 0:02:49]} 15. Qxd8 {[%emt 0:00:56]} Rxd8 {[%emt 0:00:01]} 16. Nc4 {[%emt 0:01:49]} Nd5 {[%emt 0:02:27]} 17. Ba4 {[%emt 0:04:53]} Bd7 {[%emt 0:01:30]} 18. Re1 {[%emt 0:05:33]} f6 {[%emt 0:06:40]} 19. Na5 {[%emt 0:00:50]} Rdc8 {[%emt 0:01:31]} (19... Bf8 $17) 20. Be3 {[%emt 0:09:54]} Bf8 {[%emt 0:07:43]} 21. Rad1 {[%emt 0:01:00]} Be8 {[%emt 0:03:15]} 22. Bb3 {[%emt 0:03:37]} Rab8 {[%emt 0:09:47]} 23. Re2 {[%emt 0:03:41]} Be7 {[%emt 0:08:27]} 24. Bc4 {[%emt 0:02:38]} Rd8 {[%emt 0:01:42]} 25. Rc1 {[%emt 0:02:45]} Kf7 {[%emt 0:02:57]} 26. Nb3 {[%emt 0:00:52]} Nxe3 {[%emt 0:04:53]} 27. fxe3 {[%emt 0:03:12]} Rb6 {[%emt 0:00:03]} ({Better is} 27... c5 $19 {[%cal Oa6a5]} 28. Na5 e4) 28. Rcc2 {[%emt 0:02:56]} Rd1+ {[%emt 0:03:44]} 29. Kf2 {[%emt 0:00:33]} Rh1 {[%emt 0:00:05]} 30. Kg3 {[%emt 0:04:30]} e4 {[%emt 0:00:52]} 31. Red2 {[%emt 0:01:23]} c5 {[%emt 0:02:01]} 32. Rc1 {[%emt 0:01:14]} Rxc1 {[%emt 0:03:12]} 33. Nxc1 {[%emt 0:00:04]} a5 {[%emt 0:00:15]} 34. Ne2 {[%emt 0:01:23]} f5 {[%emt 0:00:48]} 35. h4 {[%emt 0:00:38]} Kf6 {[%emt 0:00:20]} 36. Nf4 {[%emt 0:00:24]} h6 {[%emt 0:00:14][%cal Bh7h6,Bh6g5,Bg5g4][%mdl 32]} 37. b3 {[%emt 0:00:36]} g5 {[%emt 0:00:30]} 38. Nh3 {[%emt 0:00:35]} (38. hxg5+ $142 hxg5 39. Ne2) 38... Rd6 $19 {[%emt 0:01:01]} 39. Rc2 {[%emt 0:00:33]} Rd1 {[%emt 0:00:27] [#] aiming for ...Bd6+.} 40. Be2 {[%emt 0:00:26]} Rd8 {[%emt 0:00:34][%cal Oc5c4]} 41. hxg5+ {[%emt 0:11:28]} hxg5 {[%emt 0:00:05]} 42. Kf2 {[%emt 0:00:08]} g4 {[%emt 0:19:48]} 43. Ng1 {[%emt 0:00:38]} e5 {[%emt 0:00:18]} 44. g3 {[%emt 0:00:54]} Bg6 {[%emt 0:04:07]} 45. Rb2 {[%emt 0:06:12]} Kg5 {[%emt 0:01:54]} 46. Bf1 {[%emt 0:04:33]} f4 {[%emt 0:00:27]} 47. gxf4+ {[%emt 0:00:51]} exf4 {[%emt 0:00:02] [#] Threatens to win with ...f3.} 48. exf4+ {[%emt 0:00:08]} Kxf4 {[%emt 0:00:04] ( -> ...e3+)} 49. Ne2+ {[%emt 0:00:39]} Ke5 {[%emt 0:00:59]} 50. Kg3 {[%emt 0:02:46] Inhibits Bh4+.} Rd3+ {[%emt 0:01:05]} 51. Kg2 {[%emt 0:01:14]} e3 {[%emt 0:02:07]} 52. Rb1 {[%emt 0:02:51]} Rd2 {[%emt 0:00:44]} 53. Re1 {[%emt 0:00:06]} Bh4 {[%emt 0:00:13] Weighted Error Value: White=0.56/Black=0.21 (precise)} 0-1

[Event "26th Womens ECCC 2022"]
[Site "Mayrhofen"]
[Date "2022.10.03"]
[Round "1.31"]
[White "Doluhanova, Evgeniya"]
[Black "Reprun, Nadejda"]
[Result "1/2-1/2"]
[ECO "B10"]
[WhiteElo "2264"]
[BlackElo "1968"]
[Annotator "TA"]
[PlyCount "119"]
[EventDate "2022.10.03"]
[EventType "team-tourn"]
[EventCountry "AUT"]
[SourceTitle "playchess.com"]
[Source "ChessBase"]
[SourceQuality "1"]
[TimeControl "40/5400+30:1800+30"]

{[%evp 9,119,5,29,20,26,26,20,11,25,11,20,20,14,-19,30,23,22,27,35,24,37,0,12,3,57,20,42,41,37,18,20,23,30,20,22,8,11,16,10,0,5,7,28,24,22,0,14,-23,0,0,19,0,0,2,4,0,0,-11,0,0,0,0,0,0,0,0,0,0,0,0,0,0,0,-11,-11,-11,-11,-11,0,-41,-25,-26,-27,-27,-28,-35,-15,-43,0,-65,-27,-75,-72,-72,0,-32,0,-36,0,0,0,0,0,0,0,0,0,0,0,0,0,0]} 1. e4 {[%emt 0:00:05]} c6 {[%emt 0:00:06]} 2. Nf3 {[%emt 0:00:08]} d5 {[%emt 0:00:06]} 3. d3 {[%emt 0:00:12]} Bg4 {[%emt 0:01:23]} 4. h3 {[%emt 0:00:30]} Bxf3 {[%emt 0:00:34]} 5. Qxf3 {[%emt 0:00:06]} e6 {[%emt 0:00:20]} 6. g3 {[%emt 0:02:53] B10: Caro-Kann: 2 d3 and 2 c4.} Bc5 {[%emt 0:08:24]} 7. Bg2 {[%emt 0:00:56]} Nd7 {[%emt 0:01:38]} 8. Qe2 {[%emt 0:02:06]} Ne7 {[%emt 0:07:33]} 9. O-O {[%emt 0:05:43]} O-O {[%emt 0:01:44] [#]} 10. c3 $146 {[%emt 0:00:49]} ({Predecessor:} 10. Kh2 dxe4 11. dxe4 e5 12. Nd2 Qc7 13. a4 Rad8 14. a5 Nc8 15. c3 b5 16. axb6 axb6 {½-½ (52) Huda,M (2128)-Unuk,L (2350) Prague 2022}) 10... dxe4 {[%emt 0:05:41]} 11. d4 {[%emt 0:02:05]} Bd6 {[%emt 0:12:33]} (11... Bb6 $142) 12. Bxe4 $11 {[%emt 0:02:24]} Re8 {[%emt 0:05:45]} 13. Nd2 {[%emt 0:02:50]} (13. Qh5 Nf6 14. Qf3 Nxe4 15. Qxe4 Nd5 $15) 13... Nd5 {[%emt 0:02:13]} 14. Nc4 {[%emt 0:09:52]} (14. Qh5 N7f6 15. Qf3 e5 $11) 14... Bc7 {[%emt 0:02:42]} 15. Qc2 {[%emt 0:04:33]} (15. Qh5 N7f6 16. Qh4 Nxe4 17. Qxe4 e5 $15) 15... N5f6 {[%emt 0:02:01]} (15... f5 $5 {[%cal Rf5e4]} 16. Bd3 g6 $11) 16. Bg2 {[%emt 0:00:45]} h6 {[%emt 0:00:53]} (16... e5 $11) 17. Bd2 {[%emt 0:03:54]} Rc8 {[%emt 0:03:25]} 18. Rad1 {[%emt 0:01:04]} b5 {[%emt 0:02:42]} 19. Ne5 {[%emt 0:01:20]} Bxe5 {[%emt 0:02:28]} 20. dxe5 {[%emt 0:00:16]} Nd5 {[%emt 0:00:03]} 21. Rfe1 {[%emt 0:01:42]} Qc7 {[%emt 0:01:43]} 22. Qe4 {[%emt 0:05:07]} c5 {[%emt 0:03:13]} 23. Qe2 {[%emt 0:08:55]} c4 {[%emt 0:01:50]} 24. Bc1 {[%emt 0:00:31]} Nc5 {[%emt 0:10:38][%cal Bd7c5,Bc5d3,Bd3c1][%mdl 32]} 25. Qg4 {[%emt 0:06:07]} f5 {[%emt 0:07:39]} 26. exf6 $1 {[%emt 0:03:58]} Nxf6 {[%emt 0:00:09]} 27. Qh4 {[%emt 0:02:11][%cal Oc1h6]} Nd3 {[%emt 0:00:27]} 28. Re2 {[%emt 0:02:47][%cal Oc1h6]} (28. Bxh6 $5 Nxe1 29. Rxe1 $11) 28... Nxc1 {[%emt 0:00:44]} 29. Rxc1 {[%emt 0:00:08]} Rcd8 {[%emt 0:00:08]} 30. Rce1 {[%emt 0:00:47]} e5 {[%emt 0:02:29]} 31. g4 {[%emt 0:01:21]} Nd5 {[%emt 0:03:14]} 32. Bxd5+ {[%emt 0:16:04]} Rxd5 {[%emt 0:00:06]} 33. Qh5 {[%emt 0:02:07]} Re7 {[%emt 0:04:32]} 34. Qf5 {[%emt 0:01:49]} Qc5 {[%emt 0:00:52]} 35. Re3 {[%emt 0:02:14]} a5 {[%emt 0:02:44]} (35... e4 36. Qf4 $16) 36. a3 {[%emt 0:01:36]} Rf7 {[%emt 0:03:19]} ({But not} 36... e4 37. Qf4 $14) 37. Qe6 {[%emt 0:01:05]} Kf8 {[%emt 0:00:10] [#] ...Rf6 is the strong threat.} 38. Qa6 {[%emt 0:02:02]} Kg8 {[%emt 0:01:52]} 39. Qe6 {[%emt 0:05:43]} Kf8 {[%emt 0:00:06]} 40. Qg6 {[%emt 0:00:32]} Kg8 {[%emt 0:00:23]} 41. Qc2 {[%emt 0:30:55]} Qd6 {[%emt 0:31:41] aiming for ...Rd2.} 42. Qe4 {[%emt 0:00:00]} Rf4 {[%emt 0:00:00]} 43. Qg2 {[%emt 0:00:00]} Kh7 {[%emt 0:00:00]} 44. g5 {[%emt 0:00:00]} hxg5 {[%emt 0:00:00]} 45. Qxg5 {[%emt 0:00:00]} e4 $36 {[%emt 0:00:00][%mdl 2048] White is under pressure.} 46. Qg2 {[%emt 0:00:00]} Qf6 {[%emt 0:00:00]} 47. R1e2 {[%emt 0:00:00]} ({Avoid the trap} 47. Rxe4 $2 Rg5 48. Rxf4 Qxf4 $19) 47... Rd1+ {[%emt 0:00:00]} 48. Kh2 {[%emt 0:00:00]} Qd6 {[%emt 0:00:00]} (48... Qe5 $5 {[%cal Rf4f2]} 49. Qg3 Rd3 $15) 49. Qg3 {[%emt 0:00:00]} ({White should try} 49. Rg3 $1 $11 Kh8 50. Rxe4) 49... Rd3 {[%emt 0:00:00]} 50. Kg2 {[%emt 0:01:01]} (50. Kg1 $11) 50... Qf6 {[%emt 0:00:00]} 51. Kg1 {[%emt 0:02:25]} Rd5 {[%emt 0:00:00] [#] Threatens to win with ...Rg5.} 52. Qg2 {[%emt 0:00:23]} ({Don't go for} 52. Rxe4 $2 Rg5 53. Rxf4 Qxf4 $19) 52... Rd1+ {[%emt 0:00:00]} 53. Re1 {[%emt 0:00:59]} Rxe1+ {[%emt 0:00:00]} 54. Rxe1 $15 {[%emt 0:00:04][%mdl 4096] Endgame KQR-KQR. The position is equal.} Qf5 {[%emt 0:00:30]} 55. Re3 {[%emt 0:01:28]} Rf3 {[%emt 0:01:16]} 56. Rxf3 {[%emt 0:00:26]} exf3 {[%emt 0:00:13]} 57. Qg4 {[%emt 0:00:38]} Qb1+ {[%emt 0:00:36]} 58. Kh2 {[%emt 0:00:05] Black must now prevent Qh5+.} Qxb2 {[%emt 0:00:14]} 59. Qh5+ {[%emt 0:00:52]} Kg8 {[%emt 0:00:07]} 60. Qe8+ {[%emt 0:00:35] Weighted Error Value: White=0.11 (very precise) /Black=0.12 (very precise)} 1/2-1/2

[Event "26th Womens ECCC 2022"]
[Site "Mayrhofen"]
[Date "2022.10.03"]
[Round "1.32"]
[White "Vardi, Shlomit"]
[Black "Tarleva, Diana"]
[Result "1/2-1/2"]
[ECO "B07"]
[WhiteElo "1769"]
[BlackElo "2175"]
[Annotator "TA"]
[PlyCount "67"]
[EventDate "2022.10.03"]
[EventType "team-tourn"]
[EventCountry "AUT"]
[SourceTitle "playchess.com"]
[Source "ChessBase"]
[SourceQuality "1"]
[TimeControl "40/5400+30:1800+30"]

{[%evp 14,67,80,52,76,24,27,24,112,118,110,108,183,186,189,113,108,116,112,99,108,57,64,14,14,-3,0,-34,-33,-127,0,0,0,0,98,85,80,86,67,41,55,0,7,17,14,7,0,0,3,0,0,-25,0,0,0,0]} 1. e4 {[%emt 0:00:04]} d6 {[%emt 0:00:05]} 2. d4 {[%emt 0:00:18]} Nf6 {[%emt 0:00:01]} 3. Nc3 {[%emt 0:00:08]} c6 {[%emt 0:00:04]} 4. f4 {[%emt 0:00:35]} g6 {[%emt 0:00:05]} 5. Nf3 {[%emt 0:01:00]} Bg7 {[%emt 0:00:01]} 6. Bd3 {[%emt 0:02:38]} O-O {[%emt 0:00:28]} 7. O-O {[%emt 0:00:16]} Bg4 {[%emt 0:00:01]} 8. Be3 {[%emt 0:05:37]} e5 {[%emt 0:01:57] B09: Pirc Defence: Austrian Attack.} 9. h3 {[%emt 0:04:46]} ({Better is} 9. dxe5 $16 dxe5 10. fxe5) 9... Bxf3 $11 {[%emt 0:00:30]} 10. Qxf3 {[%emt 0:02:00]} Nh5 {[%emt 0:00:18]} (10... Nbd7 $11 {keeps the balance.}) 11. dxe5 $16 {[%emt 0:05:12]} dxe5 {[%emt 0:02:14] [#]} 12. f5 {[%emt 0:11:57] [#]} Nf4 $146 {[%emt 0:03:44]} (12... Nd7 $16) ({Predecessor:} 12... Nd7 13. g3 h6 14. b4 Kh7 15. Bc4 Qf6 16. Rad1 Nb6 17. Bxb6 axb6 18. Rd7 Qg5 {1-0 (28) Birkisson,B (2084)-Eliasson,K (1846) Reykjavik 2018}) 13. Bc4 $18 {[%emt 0:20:20]} (13. Bxf4 exf4 14. Qxf4 Nd7 $14) 13... Qe7 {[%emt 0:08:06]} 14. Kh1 {[%emt 0:10:29]} (14. g3 $18 Nh5 15. Rad1) 14... Nd7 $16 {[%emt 0:03:56]} 15. g3 {[%emt 0:01:43]} ({Don't take} 15. Bxf4 exf4 16. Qxf4 Be5 $11) 15... Nh5 {[%emt 0:03:58]} 16. a4 {[%emt 0:01:19]} Kh8 {[%emt 0:03:23]} 17. Rg1 {[%emt 0:07:09] White is much more active.} (17. Kg2 $16) 17... Qb4 $14 {[%emt 0:03:22][%csl LRb2,LRc4]} 18. Bb3 {[%emt 0:04:30]} (18. Bd3 $14) 18... Nc5 $1 $11 {[%emt 0:03:13]} 19. g4 {[%emt 0:00:36]} Nxb3 {[%emt 0:06:46]} 20. cxb3 {[%emt 0:02:40]} (20. gxh5 $5 {[%cal Rc2b3]} Nxa1 21. f6 $11) 20... Nf4 {[%emt 0:00:07]} 21. g5 {[%emt 0:03:18] [#]} ({White should try} 21. Bxf4 $15 exf4 22. Qxf4) 21... f6 {[%emt 0:00:42]} (21... Qxb3 $2 22. Bxf4 (22. f6 Bxf6 23. gxf6 Nh5 $18) 22... exf4 23. f6 $18) (21... Rfd8 $1 $17 22. Bxf4 exf4) 22. Bxf4 {[%emt 0:01:37]} exf4 {[%emt 0:00:07]} 23. e5 {[%emt 0:01:29]} fxe5 {[%emt 0:02:45]} (23... fxg5 $1 $11 24. f6 Bh6) 24. f6 $16 {[%emt 0:00:21]} Bxf6 {[%emt 0:01:04]} 25. gxf6 {[%emt 0:00:10] Strongly threatening Ne4.} Qxb3 {[%emt 0:00:49]} 26. Rae1 {[%emt 0:01:04]} (26. Ra3 $5 {[%cal Ra3b3]} Qxb2 27. Ne4 $14) 26... Rae8 {[%emt 0:01:36]} 27. Rg5 {[%emt 0:02:17]} (27. Rgf1 $14 {might be stronger.}) 27... Rxf6 $11 {[%emt 0:02:35]} 28. Rgxe5 {[%emt 0:00:10]} Rxe5 {[%emt 0:00:13]} 29. Rxe5 {[%emt 0:00:14]} Qxb2 {[%emt 0:00:06]} 30. Re8+ {[%emt 0:00:55]} Kg7 {[%emt 0:00:02]} 31. Re2 {[%emt 0:03:19]} Qa3 {[%emt 0:01:19]} 32. Rf2 {[%emt 0:04:01]} Qc1+ {[%emt 0:05:17]} 33. Kg2 {[%emt 0:01:38]} Qe3 {[%emt 0:00:19]} 34. Ne4 {[%emt 0:02:31] Black defended with fortune.  Weighted Error Value: White=0.23 (precise) /Black=0.21 (precise)} 1/2-1/2

[Event "26th Womens ECCC 2022"]
[Site "Mayrhofen"]
[Date "2022.10.04"]
[Round "2.1"]
[White "Muzychuk, Anna"]
[Black "Kashlinskaya, Alina"]
[Result "1/2-1/2"]
[ECO "C42"]
[WhiteElo "2534"]
[BlackElo "2482"]
[Annotator "TA"]
[PlyCount "81"]
[EventDate "2022.10.03"]
[EventType "team-tourn"]
[EventCountry "AUT"]
[SourceTitle "playchess.com"]
[Source "ChessBase"]
[SourceQuality "1"]
[TimeControl "40/5400+30:1800+30"]

{[%evp 13,81,4,15,10,23,20,22,16,18,2,6,4,31,4,5,-16,-13,-30,-27,-69,-46,-57,-67,-67,-31,-23,-18,-13,0,-31,-10,-27,-26,-55,-20,-32,-43,-32,0,0,66,62,60,74,136,126,134,139,134,121,120,135,137,139,139,129,154,154,154,150,150,143,129,118,116,102,102,87,87,87]} 1. e4 {[%emt 0:00:02]} e5 {[%emt 0:00:06]} 2. Nf3 {[%emt 0:00:06]} Nf6 {[%emt 0:00:06]} 3. Nxe5 {[%emt 0:00:09]} d6 {[%emt 0:00:06]} 4. Nf3 {[%emt 0:00:10]} Nxe4 {[%emt 0:00:06]} 5. Bd3 {[%emt 0:00:12]} Nf6 {[%emt 0:00:06]} 6. h3 {[%emt 0:00:07]} Be7 {[%emt 0:00:10]} 7. O-O {[%emt 0:00:10]} O-O {[%emt 0:00:05]} 8. c3 {[%emt 0:00:13] C42: Petroff Defence: 3 Nxe5 and unusual White 3rd moves.} b6 {[%emt 0:00:14] 8...d5 is the fancy move.} 9. Re1 {[%emt 0:01:35]} Bb7 {[%emt 0:00:28] [#]} 10. Bf1 $146 {[%emt 0:01:09] The position is equal.} ({Predecessor:} 10. Bc2 Nbd7 11. d4 Re8 12. Nbd2 Bf8 13. Rxe8 Qxe8 14. Nf1 h6 15. Bf4 b5 16. Ng3 {0-1 (54) Sunilduth Lyna,N (2618)-Laurusas,T (2511) Chess.com INT 2020}) 10... Nbd7 {[%emt 0:00:54]} 11. d4 {[%emt 0:00:22]} Re8 {[%emt 0:00:29]} 12. c4 {[%emt 0:04:35]} c5 {[%emt 0:10:08]} 13. d5 {[%emt 0:16:22]} b5 $1 {[%emt 0:05:09]} 14. cxb5 {[%emt 0:03:41]} Nxd5 {[%emt 0:01:15]} 15. Nbd2 {[%emt 0:06:39]} N5f6 {[%emt 0:04:37]} 16. Nc4 {[%emt 0:07:59]} d5 {[%emt 0:04:45]} 17. Ne3 {[%emt 0:02:10]} Bf8 {[%emt 0:01:34]} 18. a4 {[%emt 0:07:23]} d4 {[%emt 0:13:33]} 19. Nc4 {[%emt 0:00:46]} Bxf3 {[%emt 0:03:41]} 20. gxf3 {[%emt 0:00:08]} Qc7 {[%emt 0:01:45]} 21. Bg5 {[%emt 0:08:09]} h6 {[%emt 0:06:50]} 22. Bxf6 {[%emt 0:07:28]} Nxf6 {[%emt 0:00:07]} 23. Qd2 {[%emt 0:00:27]} Nd5 {[%emt 0:02:00]} 24. Rxe8 $1 {[%emt 0:04:55]} Rxe8 {[%emt 0:00:05]} 25. Re1 {[%emt 0:00:11]} Rxe1 {[%emt 0:05:14]} 26. Qxe1 {[%emt 0:00:01]} Nb6 {[%emt 0:04:20]} ({Black should try} 26... Qd8 $11) 27. a5 $1 $14 {[%emt 0:13:41][%cal Ba4a5,Ba5a6][%mdl 32]} Nxc4 {[%emt 0:00:07]} 28. Bxc4 {[%emt 0:00:01][%cal Ob5b6][%mdl 4096] Endgame KQB-KQB} Qd8 {[%emt 0:04:13] [#] Against b6} (28... Qd7 $142) 29. b6 $1 $16 {[%emt 0:03:28] White is more active.} d3 {[%emt 0:08:17]} 30. Qd2 {[%emt 0:10:12]} ({Of course not} 30. bxa7 $6 d2 31. Qxd2 Qxd2 $11) 30... axb6 {[%emt 0:00:19]} 31. a6 {[%emt 0:00:06]} b5 {[%emt 0:04:16]} 32. Bxb5 {[%emt 0:01:47] Threatens to win with Bc4.} c4 {[%emt 0:00:12]} 33. Bxc4 {[%emt 0:01:06]} Bc5 {[%emt 0:00:07]} 34. Bxd3 {[%emt 0:01:07][%cal Od3h7] [#] White threatens Bh7+! and mate.} Qg5+ {[%emt 0:02:18]} 35. Qxg5 {[%emt 0:00:06]} hxg5 {[%emt 0:00:04] KB-KB} 36. Kf1 {[%emt 0:01:02]} Kf8 {[%emt 0:00:13]} 37. Ke2 {[%emt 0:00:28]} Ke7 {[%emt 0:00:07]} 38. Be4 {[%emt 0:00:29] White is better.} Kd6 {[%emt 0:00:23]} 39. b4 {[%emt 0:00:25]} Ba7 {[%emt 0:00:54]} 40. Bb7 {[%emt 0:00:41]} Ke5 {[%emt 0:01:38]} 41. Bc6 {[%emt 0:03:22] Weighted Error Value: White=0.09 (flawless) /Black=0.13 (very precise)} 1/2-1/2

[Event "26th Womens ECCC 2022"]
[Site "Mayrhofen"]
[Date "2022.10.04"]
[Round "2.2"]
[White "Kiolbasa, Oliwia"]
[Black "Stefanova, Antoaneta"]
[Result "1/2-1/2"]
[ECO "C65"]
[WhiteElo "2404"]
[BlackElo "2440"]
[Annotator "TA"]
[PlyCount "63"]
[EventDate "2022.10.03"]
[EventType "team-tourn"]
[EventCountry "AUT"]
[SourceTitle "playchess.com"]
[Source "ChessBase"]
[SourceQuality "1"]
[TimeControl "40/5400+30:1800+30"]

{[%evp 12,63,18,5,7,7,15,2,0,19,15,0,20,-32,11,0,10,-7,-5,0,0,0,0,0,0,0,-15,-28,0,0,0,0,0,0,0,0,0,0,0,0,25,23,18,0,3,0,30,30,30,18,28,20,22,0]} 1. e4 {[%emt 0:00:03]} e5 {[%emt 0:00:03]} 2. Nf3 {[%emt 0:00:08]} Nc6 {[%emt 0:00:04][%cal Bb8c6,Bc6e7,Be7g6][%mdl 32]} 3. Bb5 {[%emt 0:00:07]} Nf6 {[%emt 0:00:28]} 4. d3 {[%emt 0:00:27]} Bc5 {[%emt 0:00:54]} 5. O-O {[%emt 0:00:19]} d6 {[%emt 0:04:54]} 6. c3 {[%emt 0:01:32]} O-O {[%emt 0:00:13]} 7. h3 {[%emt 0:02:27] 7.Re1 gains popularity.} Ne7 {[%emt 0:07:54] C65: Ruy Lopez: Berlin Defence (3...Nf6), unusual lines and 4 0-0 Bc5.} 8. Re1 {[%emt 0:08:35]} c6 {[%emt 0:04:14]} 9. Ba4 {[%emt 0:00:09]} Ng6 {[%emt 0:00:44]} 10. Bc2 {[%emt 0:19:44]} Re8 {[%emt 0:06:30]} 11. d4 {[%emt 0:11:09]} Bb6 {[%emt 0:00:22] [#]} 12. Na3 $146 {[%emt 0:04:32]} (12. Nbd2 $11) ({Predecessor:} 12. Nbd2 Bc7 13. Nf1 d5 14. Bg5 dxe4 15. Rxe4 Bf5 16. Re3 Bxc2 17. Qxc2 h6 18. Bxf6 Qxf6 {½-½ (35) Grischuk,A (2777)-So,W (2770) chess24.com INT 2020}) 12... d5 {[%emt 0:08:49]} 13. Nxe5 $1 {[%emt 0:14:46]} Nxe4 {[%emt 0:05:27]} 14. Nxg6 {[%emt 0:01:50]} hxg6 {[%emt 0:02:13]} 15. Bf4 {[%emt 0:04:11]} Bf5 {[%emt 0:06:21]} 16. f3 {[%emt 0:08:32]} Nd6 {[%emt 0:07:27]} 17. Rxe8+ {[%emt 0:01:04]} Nxe8 {[%emt 0:00:01]} 18. Bxf5 {[%emt 0:01:15]} gxf5 {[%emt 0:00:01]} 19. Qd3 {[%emt 0:00:22]} Qd7 {[%emt 0:01:49]} 20. Re1 {[%emt 0:01:45]} Bc7 {[%emt 0:01:05]} 21. Bxc7 {[%emt 0:01:21]} Nxc7 {[%emt 0:00:07]} 22. Nc2 {[%emt 0:00:08][%cal Ba3c2,Bc2b4,Bb4d3,Bd3f4][%mdl 32]} Re8 {[%emt 0:01:56]} 23. Rxe8+ {[%emt 0:01:28]} Nxe8 $11 {[%emt 0:00:06][%mdl 4096] Endgame KQN-KQN} 24. Qe2 {[%emt 0:00:43]} Nd6 {[%emt 0:02:01]} 25. Nb4 {[%emt 0:01:04]} f6 {[%emt 0:03:17]} 26. Nd3 {[%emt 0:00:17]} Kf7 {[%emt 0:01:15]} 27. Kf2 {[%emt 0:02:03]} Qc8 {[%emt 0:04:15]} 28. Kg1 {[%emt 0:09:46]} b6 {[%emt 0:10:40]} 29. h4 {[%emt 0:00:50]} g6 {[%emt 0:01:48]} 30. Nf4 {[%emt 0:00:51]} Qd7 {[%emt 0:07:23]} 31. Kf2 {[%emt 0:00:59]} Nc8 {[%emt 0:03:24]} 32. Kg1 {[%emt 0:01:40] An even fight not without its subleties.  Weighted Error Value: White=0.07 (flawless) /Black=0.07 (flawless)} 1/2-1/2